[Event "FRA-ch Teams Top 16-Bas 2022"]
[Site "Chartres"]
[Date "2022.06.17"]
[Round "9.3"]
[White "Chabanon, Jean-Luc"]
[Black "Solakian-Van Eyll, Jerome"]
[Result "1-0"]
[ECO "A50"]
[WhiteElo "2432"]
[BlackElo "2248"]
[Annotator "TA"]
[PlyCount "71"]
[EventDate "2022.06.16"]
[EventType "team-tourn"]
[EventCountry "FRA"]
[SourceTitle "playchess.com"]
[Source "ChessBase"]
[SourceQuality "1"]
[TimeControl "40/5400+30:1800+30"]

{[%evp 11,71,10,20,13,31,34,29,31,21,-21,17,17,32,20,20,17,20,30,33,25,25,34,36,18,25,15,32,34,55,21,7,19,35,35,35,32,32,26,35,30,33,46,69,72,83,80,93,103,291,298,464,299,420,343,399,387,642,649,1258,1173,1158,1008]} 1. Nf3 {[%emt 0:07:58]} Nf6 {[%emt 0:00:36]} 2. g3 {[%emt 0:00:26]} b6 {[%emt 0:00:45]} 3. Bg2 {[%emt 0:00:28]} Bb7 {[%emt 0:00:05]} 4. O-O {[%emt 0:00:23]} g6 {[%emt 0:01:17]} 5. c4 {[%emt 0:02:52]} Bg7 {[%emt 0:00:38]} 6. d4 {[%emt 0:02:20]} O-O {[%emt 0:00:42]} 7. Bf4 {[%emt 0:08:17] 7.Re1 is the modern continuation. A50: Queen's Fianchetto Defence (1 d4 Nf6 2 c4 b6).} d6 {[%emt 0:17:24]} 8. Qc2 {[%emt 0:16:55]} c5 {[%emt 0:08:58]} 9. d5 {[%emt 0:00:47] White has an edge.} b5 {[%emt 0:00:56] [#]} 10. Nbd2 $146 {[%emt 0:05:23]} ({Predecessor:} 10. e4 bxc4 11. Nbd2 a5 12. Nxc4 a4 13. Rfe1 Nbd7 14. Bd2 Ra6 15. Bc3 Qa8 16. Nfd2 {½-½ (26) Sumets,A (2569)-Tratar,M (2439) Trieste 2018}) 10... Nbd7 {[%emt 0:01:42]} 11. e4 {[%emt 0:00:12]} Ba6 {[%emt 0:15:21]} 12. Rfe1 {[%emt 0:16:13]} Ng4 {[%emt 0:03:22] Against e5} 13. Bf1 {[%emt 0:00:20]} Rb8 {[%emt 0:09:18]} 14. cxb5 {[%emt 0:05:49]} Bxb5 {[%emt 0:00:10]} 15. Bxb5 {[%emt 0:00:04]} Rxb5 {[%emt 0:00:05]} 16. Rab1 {[%emt 0:03:57]} Nge5 {[%emt 0:07:27]} 17. Nxe5 {[%emt 0:02:33]} Nxe5 {[%emt 0:00:16]} 18. b3 {[%emt 0:00:28]} Qd7 {[%emt 0:06:23]} 19. Kg2 {[%emt 0:00:53]} Qb7 {[%emt 0:10:24]} 20. Nc4 {[%emt 0:07:31]} Nxc4 {[%emt 0:05:47]} 21. bxc4 {[%emt 0:00:07]} Rb4 {[%emt 0:03:36]} 22. Bd2 {[%emt 0:02:30]} Rb6 {[%emt 0:00:54]} 23. Ba5 {[%emt 0:01:55]} Rxb1 {[%emt 0:00:31]} 24. Rxb1 {[%emt 0:00:06]} Qd7 {[%emt 0:00:21]} 25. Bc3 {[%emt 0:06:08]} Bxc3 {[%emt 0:03:03]} 26. Qxc3 $11 {[%emt 0:00:08][%mdl 4096] Endgame KQR-KQR} f5 {[%emt 0:01:56]} 27. e5 {[%emt 0:01:10][%cal Be4e5,Be5e6][%mdl 32]} f4 {[%emt 0:00:05]} 28. e6 {[%emt 0:00:44]} Qa4 {[%emt 0:00:54]} 29. a3 {[%emt 0:01:34] White is more active.} f3+ $2 {[%emt 0:00:57] This costs Black the game.} (29... Qe8 $16) 30. Kg1 $18 {[%emt 0:02:32]} Rf6 {[%emt 0:00:22]} (30... h5 $142 31. Qd3 Qe8) 31. h3 {[%emt 0:00:44] [#] Black must now prevent Rb8+.} g5 {[%emt 0:01:07]} (31... Rf8 {keeps fighting.} 32. Kh2 Re8) 32. g4 {[%emt 0:02:19]} Qe8 {[%emt 0:00:31]} 33. Rb7 {[%emt 0:01:18]} h5 $2 {[%emt 0:00:22]} (33... Qg6 34. Qb2 (34. Rxe7 Qb1+ 35. Kh2 Qf1 $11) 34... Qg7 35. Rxa7 h5) 34. Qb2 {[%emt 0:01:01] Strongly threatening Rb8. White is clearly winning.} Kg7 {[%emt 0:00:11]} 35. Rb8 {[%emt 0:00:28]} Qg6 {[%emt 0:00:02] [#]} 36. Qb7 $1 {[%emt 0:00:21][%csl LRa7,LRe7] Weighted Error Value: White=0.17 (very precise) /Black=0.34} 1-0

[Event "FRA-ch Teams Top 16-Bas 2022"]
[Site "Chartres"]
[Date "2022.06.17"]
[Round "9.4"]
[White "Ramirez Garcia, Jorge Alberto"]
[Black "Godart, Francois"]
[Result "1/2-1/2"]
[ECO "C47"]
[WhiteElo "2242"]
[BlackElo "2399"]
[Annotator "TA"]
[PlyCount "50"]
[EventDate "2022.06.16"]
[EventType "team-tourn"]
[EventCountry "FRA"]
[SourceTitle "playchess.com"]
[Source "ChessBase"]
[SourceQuality "1"]
[TimeControl "40/5400+30:1800+30"]

{[%evp 11,50,37,43,30,35,38,39,-5,1,2,5,0,9,14,10,-15,20,4,23,-7,-9,-25,-12,-61,-67,-72,-61,-61,-61,-66,-36,-57,-39,-60,-55,-68,-27,-50,0,-59,0]} 1. e4 {[%emt 0:00:30]} e5 {[%emt 0:00:14]} 2. Nc3 {[%emt 0:00:06]} Nf6 {[%emt 0:00:17]} 3. Nf3 {[%emt 0:00:05]} Nc6 {[%emt 0:00:11]} 4. d4 {[%emt 0:00:05]} Bb4 {[%emt 0:00:45]} 5. Nxe5 {[%emt 0:00:14]} Bxc3+ {[%emt 0:00:12]} 6. bxc3 {[%emt 0:00:15]} Qe7 $1 {[%emt 0:00:05]} 7. Nxc6 {[%emt 0:00:27] C47: Scotch Four Knights and Four Knights with 4 g3.} Qxe4+ {[%emt 0:00:11]} 8. Qe2 {[%emt 0:00:10] [#] Black must now prevent Nb4.} dxc6 {[%emt 0:00:20]} 9. Bf4 {[%emt 0:16:34] White is slightly better.} Qxe2+ {[%emt 0:04:08]} 10. Bxe2 {[%emt 0:00:10]} Nd5 {[%emt 0:00:17]} 11. Bd2 {[%emt 0:00:22]} Bf5 {[%emt 0:01:11]} 12. O-O-O {[%emt 0:02:28]} O-O-O {[%emt 0:03:03]} 13. Rhe1 {[%emt 0:12:59]} Rhe8 {[%emt 0:03:40] [#]} 14. Bf1 $146 {[%emt 0:14:06]} ({Predecessor:} 14. Bh5 g6 15. Bf3 f6 16. h4 Nb6 17. Re2 Rxe2 18. Bxe2 Be4 19. Bf1 Bd5 20. a3 {½-½ (38) Ritz,O (1905)-Kruse,E DESC email 1999}) 14... Be6 {[%emt 0:02:13]} 15. Bd3 {[%emt 0:00:52]} Nb6 {[%emt 0:04:15]} 16. Kb1 {[%emt 0:00:18]} ({Reject} 16. Bxh7 g6 17. h4 Rd5 $11) 16... Rd5 {[%emt 0:08:00]} 17. Re5 {[%emt 0:03:26]} ({Wrong is} 17. Bxh7 $2 Rb5+ 18. Kc1 g6 $19) (17. f4 $11) 17... Rxe5 $15 {[%emt 0:15:48]} 18. dxe5 {[%emt 0:00:12]} Rd8 {[%emt 0:02:37]} 19. f4 {[%emt 0:07:45]} ({Not} 19. Bxh7 $2 g6 20. h3 Nc4 $19) 19... g6 {[%emt 0:02:39]} 20. a3 {[%emt 0:03:42]} Bf5 {[%emt 0:14:40]} 21. Be2 {[%emt 0:04:57]} Rd5 {[%emt 0:06:51]} 22. Kc1 {[%emt 0:01:27]} Ra5 {[%emt 0:04:12]} 23. Kb2 {[%emt 0:01:52]} Na4+ {[%emt 0:04:16]} 24. Kc1 {[%emt 0:01:32]} Nb6 {[%emt 0:02:55]} (24... Nc5 $5 {[%cal Ra5a3]}) 25. Kb2 {[%emt 0:00:44]} Na4+ {[%emt 0:00:34] Weighted Error Value: White=0.14 (very precise) /Black=0.12 (very precise)} (25... Rc5 $15) 1/2-1/2

[Event "FRA-ch Teams Top 16-Bas 2022"]
[Site "Chartres"]
[Date "2022.06.17"]
[Round "9.5"]
[White "Dionisi, Thomas"]
[Black "Sohier, Julien"]
[Result "1-0"]
[ECO "C77"]
[WhiteElo "2408"]
[BlackElo "2218"]
[Annotator "TA"]
[PlyCount "57"]
[EventDate "2022.06.16"]
[EventType "team-tourn"]
[EventCountry "FRA"]
[SourceTitle "playchess.com"]
[Source "ChessBase"]
[SourceQuality "1"]
[TimeControl "40/5400+30:1800+30"]

{[%evp 13,57,17,28,17,20,14,19,25,29,28,32,30,33,33,36,44,45,27,29,28,24,14,170,150,155,159,306,315,419,420,403,380,464,400,414,406,428,429,427,415,382,362,643,591,590,585]} 1. e4 {[%emt 0:00:10]} e5 {[%emt 0:00:08]} 2. Nf3 {[%emt 0:00:04]} Nc6 {[%emt 0:00:08]} 3. Bb5 {[%emt 0:00:04]} a6 {[%emt 0:00:11]} 4. Ba4 {[%emt 0:00:05]} Nf6 {[%emt 0:00:08]} 5. d3 {[%emt 0:00:06]} d6 {[%emt 0:00:19]} 6. c3 {[%emt 0:00:24]} g6 {[%emt 0:00:37]} 7. O-O {[%emt 0:00:15]} Bg7 {[%emt 0:00:14]} 8. h3 {[%emt 0:00:15] C77: Ruy Lopez: 3...a6 4 Ba4 Nf6, unusual lines.} O-O {[%emt 0:00:16]} 9. Be3 $1 {[%emt 0:00:05] The main line 9.Be3 scores better than 9.Re1.} b5 {[%emt 0:06:43]} 10. Bc2 {[%emt 0:00:10][%cal Ba4c2,Bc2b3,Bb3f7][%mdl 32] The position is equal.} Re8 {[%emt 0:10:36]} 11. a4 {[%emt 0:00:26]} Bb7 {[%emt 0:06:45]} 12. Nbd2 {[%emt 0:00:30]} b4 {[%emt 0:03:34]} 13. a5 {[%emt 0:00:09]} bxc3 {[%emt 0:04:02]} 14. bxc3 {[%emt 0:00:02]} Na7 {[%emt 0:02:09]} 15. Bb3 {[%emt 0:06:36][%cal Ob3f7] [#] Hoping for Bxf7+!} d5 $146 {[%emt 0:08:42]} ({Predecessor:} 15... h6 16. Bxf7+ Kxf7 17. Qb3+ Re6 18. Qxb7 Nb5 19. c4 Rb8 20. Qxa6 Nc3 21. Ra3 Ne2+ {1-0 (45) Tsolakidou,S (2340)-Nomin Erdene,D (2358) Tarvisio 2017}) 16. Qc2 {[%emt 0:04:09]} Nb5 {[%emt 0:05:42]} 17. Rfe1 {[%emt 0:11:25][%cal Bf1e1,Be1e3,Be3f3][%mdl 32]} Qd6 $2 {[%emt 0:05:40] [#] Black cannot hold the game after this.} (17... dxe4 $11 18. Nxe4 (18. dxe4 Qe7 $11) 18... Nxe4 19. dxe4 Qe7) 18. exd5 $18 {[%emt 0:25:29]} Nxd5 {[%emt 0:04:33]} 19. Ne4 {[%emt 0:01:51]} Nxe3 {[%emt 0:08:10]} (19... Qd8 $16) 20. Bxf7+ $1 {[%emt 0:03:39]} ({Not} 20. fxe3 Bxe4 21. dxe4 Qc5 $11) 20... Kf8 {[%emt 0:00:20]} 21. Rxe3 {[%emt 0:01:18]} Bxe4 {[%emt 0:01:58]} 22. Bxe8 {[%emt 0:00:32]} Bxf3 {[%emt 0:06:55]} 23. Bxb5 {[%emt 0:02:59]} Bxg2 {[%emt 0:01:18]} 24. Kxg2 {[%emt 0:00:33]} axb5 {[%emt 0:00:16]} 25. Rf3+ {[%emt 0:03:59]} ({Much less strong is} 25. Qb3 c6 26. a6 Bf6 $18) 25... Bf6 {[%emt 0:00:43]} 26. Qb3 {[%emt 0:02:18]} Qc6 {[%emt 0:01:38]} 27. Rb1 {[%emt 0:03:19]} ({Less strong is} 27. Kg3 Kg7 28. Qb4 Rf8 $18) 27... Rb8 $2 {[%emt 0:02:58] [#]} (27... Ra6 28. Qxb5 Qxb5 29. Rxb5 Ke7) 28. Qb4+ {[%emt 0:00:35]} Kg7 {[%emt 0:00:06]} 29. c4 {[%emt 0:33:33] Weighted Error Value: White=0.07 (flawless) /Black=0.39} 1-0

[Event "FRA-ch Teams Top 16-Bas 2022"]
[Site "Chartres"]
[Date "2022.06.17"]
[Round "9.6"]
[White "Iglesias, Yosha"]
[Black "Brochet, Philippe"]
[Result "1-0"]
[ECO "A07"]
[WhiteElo "2202"]
[BlackElo "2390"]
[Annotator "TA"]
[PlyCount "153"]
[EventDate "2022.06.16"]
[EventType "team-tourn"]
[EventCountry "FRA"]
[SourceTitle "playchess.com"]
[Source "ChessBase"]
[SourceQuality "1"]
[TimeControl "40/5400+30:1800+30"]

{[%evp 10,153,10,4,26,25,25,18,25,12,13,10,52,29,29,34,48,52,168,158,186,181,176,179,154,99,99,99,99,99,101,100,100,99,98,61,100,93,132,126,132,134,145,127,124,125,159,87,76,17,17,17,17,17,17,17,18,18,20,18,20,20,27,27,35,35,35,18,18,18,18,18,20,0,0,0,8,0,0,0,0,0,0,0,0,0,0,0,0,0,0,0,0,0,0,0,29963,0,0,0,29963,29964,29965,29966,29965,29966,29965,29967,29967,29968,29968,29965,29972,29973,29973,29974,29973,29973,29973,29974,29975,29976,29976,29977,29977,29978,29978,29979,29979,29980,29980,0,0,0,0,0,0,0,0,0,0,0,29980,29979,29979,29978]} 1. Nf3 {[%emt 0:00:06]} d5 {[%emt 0:00:12]} 2. g3 {[%emt 0:00:08]} Bg4 {[%emt 0:11:42]} 3. Bg2 {[%emt 0:00:47]} Nd7 {[%emt 0:00:07]} 4. O-O {[%emt 0:00:18]} c6 {[%emt 0:00:01]} 5. h3 {[%emt 0:02:17]} Bh5 {[%emt 0:00:36]} 6. d3 {[%emt 0:02:00]} e5 {[%emt 0:01:01] A07: Réti Opening: New York and Capablanca Systems.} 7. c4 {[%emt 0:02:21]} dxc4 {[%emt 0:01:43]} 8. d4 {[%emt 0:04:58]} exd4 {[%emt 0:05:49] The position is equal.} 9. Qxd4 {[%emt 0:00:10]} Ngf6 {[%emt 0:00:11]} 10. Qxc4 {[%emt 0:02:49] [#]} Bxf3 $146 {[%emt 0:02:25]} (10... Be7 {seems wilder.} 11. Rd1 O-O 12. Nh4 Nb6) ({Predecessor:} 10... Be7 11. Nh4 O-O 12. Nc3 Qa5 13. a3 Nb6 14. Qb3 Rfe8 15. e4 Bf8 16. Qc2 Bg6 17. Nxg6 hxg6 {1-0 (43) Meier,G (2623)-Bartholomew,J (2439) Chess.com INT 2019}) 11. Bxf3 {[%emt 0:13:53]} Ne5 {[%emt 0:02:24]} 12. Qb3 {[%emt 0:00:09]} Nxf3+ {[%emt 0:01:46]} 13. exf3 {[%emt 0:00:29]} Qd7 {[%emt 0:04:20]} (13... Qb6 $14) 14. Rd1 $1 $18 {[%emt 0:04:57]} Nd5 {[%emt 0:23:54]} 15. Nc3 {[%emt 0:00:27]} Rd8 {[%emt 0:00:51]} 16. Nxd5 {[%emt 0:07:00]} cxd5 {[%emt 0:00:14]} 17. Bd2 {[%emt 0:08:29]} ({White should try} 17. Bf4 Be7 18. Rac1) 17... Be7 $16 {[%emt 0:04:20]} 18. Bb4 {[%emt 0:00:19]} O-O {[%emt 0:00:39]} 19. Bxe7 {[%emt 0:00:12]} Qxe7 {[%emt 0:00:03]} 20. Rxd5 {[%emt 0:00:17]} Rxd5 {[%emt 0:06:55]} 21. Qxd5 {[%emt 0:00:06][%mdl 4096] Endgame KQR-KQR} Rd8 {[%emt 0:01:32]} 22. Qa5 {[%emt 0:02:25]} a6 {[%emt 0:05:59]} 23. Re1 {[%emt 0:03:29]} (23. Kg2 {feels hotter.} g6 24. Qc3 Rd6 25. Re1) 23... Qd7 {[%emt 0:04:53]} 24. Kg2 {[%emt 0:00:59] White is more active.} g6 {[%emt 0:01:32]} 25. h4 {[%emt 0:00:24]} h5 {[%emt 0:01:47]} 26. Qb4 {[%emt 0:05:50]} b5 {[%emt 0:01:41]} 27. Re7 {[%emt 0:02:01]} Qd6 {[%emt 0:05:06] [#]} 28. Qxd6 {[%emt 0:06:13]} (28. Re8+ $142 $1 {[%mdl 512]} Kh7 29. Qb3 $1) 28... Rxd6 {[%emt 0:00:02] KR-KR} 29. b3 {[%emt 0:00:48]} ({White should play} 29. b4 $16) 29... Rd2 $11 {[%emt 0:01:34]} 30. a4 {[%emt 0:00:54]} bxa4 {[%emt 0:00:03]} 31. bxa4 {[%emt 0:00:09] Black should prevent Ra7.} Ra2 $1 {[%emt 0:00:11]} 32. Re4 {[%emt 0:00:09]} Kg7 {[%emt 0:00:20]} 33. Rc4 {[%emt 0:03:55]} f5 {[%emt 0:01:45]} 34. g4 {[%emt 0:08:02]} hxg4 {[%emt 0:00:09]} 35. fxg4 {[%emt 0:00:03]} fxg4 {[%emt 0:00:08]} 36. Rxg4 {[%emt 0:01:42] And now h5 would win.} Kh6 {[%emt 0:00:06]} 37. Kg3 {[%emt 0:00:39]} Ra3+ {[%emt 0:02:55]} 38. f3 {[%emt 0:00:11]} Ra1 {[%emt 0:01:35]} 39. Rd4 {[%emt 0:00:55]} Rg1+ {[%emt 0:01:19]} 40. Kf4 {[%emt 0:01:25] Rd6 is the strong threat.} Rh1 {[%emt 0:03:21]} 41. Ke5 {[%emt 0:32:06]} Kh5 {[%emt 0:30:48]} 42. Rd6 {[%emt 0:07:37]} Rxh4 {[%emt 0:00:00]} 43. Rxa6 {[%emt 0:00:00] Hoping for a5.} g5 $1 {[%emt 0:00:00]} 44. a5 {[%emt 0:00:00]} Ra4 $1 {[%emt 0:00:00]} 45. Ra8 {[%emt 0:00:00]} Kh4 $1 {[%emt 0:00:00]} 46. a6 {[%emt 0:00:00]} Ra5+ {[%emt 0:00:00]} 47. Kd4 $1 {[%emt 0:00:00]} Kg3 {[%emt 0:00:29]} 48. a7 {[%emt 0:00:00][%cal Of3f4] Black must now prevent f4!} (48. Ke4 $5 {[%cal Ra6a7]}) 48... Ra4+ {[%emt 0:00:48]} 49. Ke5 {[%emt 0:00:00]} (49. Ke3 Ra3+ 50. Ke2 Ra2+ 51. Kd3 (51. Ke3 Ra3+ 52. Ke2 Ra2+ 53. Ke3 Ra5 $11) 51... Ra5) 49... Ra5+ {[%emt 0:01:49]} 50. Ke6 {[%emt 0:00:00]} (50. Ke4 Kf2) (50. Kd4 $5 {[%cal Rf3f4]} Ra4+ 51. Ke5 $11 (51. Ke3 Ra3+ 52. Ke2 Ra2+ 53. Ke1 Ra1+ 54. Ke2 Ra2+ 55. Kf1 Ra1+ 56. Ke2 Ra2+ $11)) 50... Ra6+ {[%emt 0:00:43]} 51. Kf5 {[%emt 0:00:00]} Ra5+ {[%emt 0:00:01]} 52. Kg6 {[%emt 0:00:00]} (52. Ke4 $5 {[%cal Rf3f4]} Ra4+ 53. Kd3 (53. Ke3 Ra3+ 54. Ke4 Ra4+ 55. Ke5 Ra5+ 56. Ke4 Ra4+ $16) 53... Ra3+ 54. Ke4 Ra4+ 55. Ke5 $16 (55. Ke3 Ra3+ 56. Ke4 Ra4+ $16)) 52... Kf2 $2 {[%emt 0:01:41][%mdl 8192]} (52... Kxf3 $11 53. Rf8+ Ke3) 53. Kh6 $2 {[%emt 0:00:00]} (53. Rf8 $1 Rxa7 54. Kxg5 Ra5+ 55. Kg4 Ra7 56. f4 Rg7+ 57. Kf5 Kf3 58. Rb8) 53... Kg3 $1 {[%emt 0:01:33]} 54. Kg6 $2 {[%emt 0:06:48][%mdl 8192]} (54. f4 $11 gxf4 55. Kh7 (55. Rg8+ Kh2 $11)) 54... Kf2 {[%emt 0:00:20]} 55. Rf8 $1 {[%emt 0:00:44]} Rxa7 {[%emt 0:00:07]} 56. Kxg5 {[%emt 0:00:04]} Ra5+ {[%emt 0:03:27] [#]} 57. Kg4 $1 {[%emt 0:00:29]} Ra1 {[%emt 0:00:54]} 58. f4 {[%emt 0:00:35][%cal Bf3f4,Bf4f5,Bf5f6,Bf6f7][%mdl 32]} Rg1+ {[%emt 0:00:02]} 59. Kf5 {[%emt 0:00:19]} Ra1 {[%emt 0:00:29]} 60. Rb8 {[%emt 0:01:00]} Kg3 {[%emt 0:00:41] [#]} 61. Kg5 $1 {[%emt 0:00:32]} Kf3 {[%emt 0:00:36]} 62. f5 {[%emt 0:00:46]} Ke4 {[%emt 0:00:11]} 63. Re8+ {[%emt 0:00:54]} Kd5 {[%emt 0:00:06]} 64. f6 {[%emt 0:00:05]} Rg1+ {[%emt 0:00:40]} 65. Kh6 {[%emt 0:00:09]} Rh1+ {[%emt 0:00:13]} 66. Kg7 {[%emt 0:00:03]} Rg1+ {[%emt 0:00:08]} 67. Kf8 {[%emt 0:00:07]} Kd6 {[%emt 0:00:33]} 68. f7 {[%emt 0:00:12]} Kd7 {[%emt 0:00:16]} 69. Re4 {[%emt 0:00:11]} Rf1 {[%emt 0:00:41]} 70. Kg7 $2 {[%emt 0:00:51]} (70. Rg4 {mates} Ke6 71. Rg6+ Kd7 72. Kg8 Ke7 73. Rg7 Kd6 74. f8=Q+ Rxf8+ 75. Kxf8) 70... Rg1+ {[%emt 0:00:02]} 71. Kf6 $1 {[%emt 0:00:52] Rf4 would kill now.} Rf1+ {[%emt 0:00:09]} 72. Kg6 {[%emt 0:00:10] Threatening mate with Re8.} Rg1+ $1 {[%emt 0:00:09]} 73. Kf6 {[%emt 0:00:24] White threatens Rf4 and mate.} Rf1+ {[%emt 0:00:38]} 74. Kg7 {[%emt 0:00:06]} Rg1+ {[%emt 0:01:01]} 75. Kf8 $2 {[%emt 0:00:05][%mdl 8192]} (75. Kh6 $11 Rf1 76. Kg7) 75... Rf1 {[%emt 0:00:26]} 76. Re2 {[%emt 0:01:39] Inhibits Rf2.} Ra1 {[%emt 0:01:45]} 77. Rg2 {[%emt 0:02:28] Weighted Error Value: White=0.25 (precise) /Black=0.17 (very precise)} 1-0

[Event "FRA-ch Teams Top 16-Bas 2022"]
[Site "Chartres"]
[Date "2022.06.17"]
[Round "9.7"]
[White "Housieaux, David"]
[Black "Lemonnier, Remi"]
[Result "1-0"]
[ECO "D43"]
[WhiteElo "2412"]
[BlackElo "2033"]
[Annotator "TA"]
[PlyCount "78"]
[EventDate "2022.06.16"]
[EventType "team-tourn"]
[EventCountry "FRA"]
[SourceTitle "playchess.com"]
[Source "ChessBase"]
[SourceQuality "1"]
[TimeControl "40/5400+30:1800+30"]

{[%evp 13,78,-19,0,-15,-18,-22,0,-51,-21,-16,0,-33,-28,-46,-42,-35,-20,-20,-16,-18,-19,-12,0,0,45,0,151,8,25,-7,6,21,131,105,148,-89,32,24,47,3,16,0,43,42,40,46,36,41,42,38,72,85,78,40,42,36,70,70,70,70,70,70,67,78,76,72,72]} 1. d4 {[%emt 0:06:30]} d5 {[%emt 1:31:00]} 2. c4 {[%emt 0:01:13]} c6 {[%emt 0:00:00]} 3. Nf3 {[%emt 0:01:19]} Nf6 {[%emt 0:00:00]} 4. Nc3 {[%emt 0:01:12]} e6 {[%emt 0:00:00]} 5. Qd3 {[%emt 0:02:51]} dxc4 {[%emt 0:00:00]} 6. Qxc4 {[%emt 0:00:13]} b5 {[%emt 0:00:00]} 7. Qb3 {[%emt 0:04:47]} a6 {[%emt 0:00:00]} 8. Bg5 {[%emt 0:11:33] D43: Semi-Slav: 5 Bg5 h6.} Nbd7 {[%emt 0:00:00]} 9. e4 {[%emt 0:07:47]} h6 {[%emt 0:00:00]} 10. Bh4 {[%emt 0:01:51]} (10. Bxf6 $11 Qxf6 11. Qc2) 10... g5 {[%emt 0:00:00]} 11. Bg3 {[%emt 0:00:55]} b4 {[%emt 0:00:00] [#]} 12. Na4 $146 {[%emt 0:09:44]} ({Predecessor:} 12. d5 bxc3 13. dxe6 fxe6 14. Qxe6+ Qe7 15. Qxc6 cxb2 16. Rd1 Qxe4+ 17. Qxe4+ Nxe4 18. Bd3 Bb4+ 19. Kf1 Nxg3+ 20. hxg3 a5 21. Nxg5 Ba6 22. Ke2 Bxd3+ 23. Kxd3 O-O-O {0-1 (23) Kral,P (1937)-Drnovsek,G (2359) Pardubice 2016}) 12... Nxe4 {[%emt 0:00:00]} 13. Bd3 {[%emt 0:02:52]} Nxg3 {[%emt 0:00:00]} 14. hxg3 {[%emt 0:00:42]} Qe7 {[%emt 0:00:00]} 15. O-O {[%emt 0:09:01]} Bg7 {[%emt 0:00:00]} 16. Rfe1 {[%emt 0:00:19]} O-O {[%emt 0:00:00]} 17. Rac1 {[%emt 0:00:32][%cal Ba1c1,Bc1c6,Bc6b6][%mdl 32]} a5 {[%emt 0:00:00]} 18. Rxc6 {[%emt 0:01:16]} Nb8 {[%emt 0:00:00]} (18... Bb7 19. Rcxe6 $1 {[%mdl 512]} Qd8 20. Be4 fxe6 21. Bxb7 $16 (21. Qxe6+ Kh8 $11)) (18... Qd8 $5 {[%cal Rc8b7]}) 19. Rb6 {[%emt 0:07:07]} g4 $2 {[%emt 0:00:00]} (19... Nd7 $11) 20. Ne5 {[%emt 0:03:00]} (20. Nh4 $1 $16) 20... Nd7 $11 {[%emt 0:00:00] [#]} 21. Bc2 $1 $132 {[%emt 0:19:09][%cal Ob3d3][%mdl 2048] White has counterplay} Nxb6 {[%emt 0:00:00]} (21... Nxe5 22. dxe5) 22. Nxb6 {[%emt 0:01:19]} Rb8 {[%emt 0:01:28] [#]} (22... Ba6 $11) 23. Qd3 $1 $16 {[%emt 0:01:47][%csl Gc2][%cal Rd3h7] 0x0.00207a552004dp-1022s more active pieces. The black rooks are badly placed.} f5 {[%emt 0:00:30]} (23... Rd8 24. Qh7+) 24. Nbc4 {[%emt 0:00:56] [#]} (24. Ng6 $16 {and life is bright.} Qa7 25. Nxc8 (25. Nxf8 Rxb6 26. Ng6 Rd6 $11) 25... Rbxc8 26. Nxf8 Rxf8 27. d5 (27. Rxe6 Qxd4 28. Qxd4 Bxd4 $14)) 24... Qf6 {[%emt 0:02:50]} (24... Qc7 $1 $17 {aiming for ...Ba6.} 25. b3 Rd8) 25. Nxa5 $14 {[%emt 0:01:06]} Rb6 {[%emt 0:01:33]} 26. Nac4 {[%emt 0:01:24] Pair of Knights!} Ra6 {[%emt 0:01:51]} 27. Bb3 {[%emt 0:00:44]} Rd8 {[%emt 0:00:38]} 28. Ne3 {[%emt 0:01:46] Strongly threatening Nxf5.} Qxe5 {[%emt 0:01:35] [#]} 29. Qxa6 $1 {[%emt 0:00:02]} Qxe3 $1 {[%emt 0:00:43]} 30. Rxe3 {[%emt 0:00:04]} Bxa6 {[%emt 0:00:07]} 31. Rxe6 {[%emt 0:00:02]} Rxd4 {[%emt 0:02:04] Threatens to win with ...Bc4.} 32. Rxa6+ {[%emt 0:00:09][%mdl 4096] Endgame KRB-KRB} Kh7 {[%emt 0:01:31]} 33. Bf7 {[%emt 0:01:32]} Rd1+ {[%emt 0:00:21][%mdl 64] Discovered Attack} 34. Kh2 {[%emt 0:00:03]} Bxb2 {[%emt 0:00:24]} 35. Bg6+ {[%emt 0:00:06]} Kg7 {[%emt 0:00:03]} 36. Bxf5 {[%emt 0:00:04]} Rd2 {[%emt 0:01:07]} 37. Rg6+ {[%emt 0:00:50]} Kf7 {[%emt 0:00:41]} 38. Rxh6 {[%emt 0:00:07]} Rxf2 {[%emt 0:00:26]} 39. Bxg4 {[%emt 0:00:20]} Rf6 {[%emt 0:01:08] Weighted Error Value: White=0.28 (precise) /Black=0.33} 1-0

[Event "FRA-ch Teams Top 16-Bas 2022"]
[Site "Chartres"]
[Date "2022.06.17"]
[Round "9.8"]
[White "Coriat, Caroline"]
[Black "Monpeurt, Cyrielle"]
[Result "0-1"]
[ECO "D05"]
[WhiteElo "1752"]
[BlackElo "2172"]
[Annotator "NA RC"]
[PlyCount "60"]
[EventDate "2022.06.16"]
[EventType "team-tourn"]
[EventCountry "FRA"]
[SourceTitle "playchess.com"]
[Source "ChessBase"]
[SourceQuality "1"]
[TimeControl "40/5400+30:1800+30"]

1. d4 {[%emt 0:00:30]} Nf6 {[%emt 0:07:37]} 2. Nf3 {[%emt 0:00:00]} c5 {[%emt 0:00:14]} 3. e3 {[%emt 0:00:00]} e6 {[%emt 0:01:36]} 4. Bd3 {[%emt 0:00:37]} d5 {[%emt 0:01:11]} 5. Nbd2 {[%emt 0:03:59]} Nc6 {[%emt 0:01:20]} 6. c3 {[%emt 0:01:03]} Bd6 {[%emt 0:04:15]} 7. O-O {[%emt 0:01:17]} O-O {[%emt 0:00:30]} 8. Re1 {[%emt 0:03:52]} cxd4 {[%emt 0:09:49]} 9. exd4 {[%emt 0:00:34]} Qc7 {[%emt 0:00:38]} 10. Qe2 {[%emt 0:04:56]} Nd7 {[%emt 0:23:32]} 11. c4 {[%emt 0:19:20]} Bf4 {[%emt 0:08:13]} 12. a3 {[%emt 0:09:04]} Rd8 {[%emt 0:03:33]} 13. Nb3 {[%emt 0:23:03]} dxc4 {[%emt 0:13:11]} 14. Bxc4 {[%emt 0:00:26]} Bxc1 {[%emt 0:00:21]} 15. Raxc1 {[%emt 0:00:21]} Nf8 {[%emt 0:00:40]} 16. Qe4 {[%emt 0:05:46]} Qb6 {[%emt 0:03:04]} 17. Re3 {[%emt 0:06:09]} Ne7 {[%emt 0:01:52]} 18. Ng5 {[%emt 0:05:11]} h6 {[%emt 0:01:10]} 19. Nf3 {[%emt 0:03:24]} Bd7 {[%emt 0:00:33]} 20. Ne5 {[%emt 0:00:49]} Bb5 {[%emt 0:05:33]} 21. Qf4 {[%emt 0:03:22]} Nf5 {[%emt 0:01:25]} 22. Rh3 {[%emt 0:01:39]} Bxc4 {[%emt 0:00:29]} 23. Rxc4 {[%emt 0:01:02]} Rac8 {[%emt 0:04:15]} 24. Rb4 {[%emt 0:01:40]} Qc7 {[%emt 0:00:53]} 25. Rc3 {[%emt 0:01:44]} Qe7 {[%emt 0:00:40]} 26. Qf3 {[%emt 0:01:12]} Nd6 {[%emt 0:01:41]} 27. Na5 {[%emt 0:00:49]} Rxc3 {[%emt 0:01:07]} 28. bxc3 {[%emt 0:00:07]} Qg5 {[%emt 0:00:30]} 29. g3 {[%emt 0:00:57]} f6 {[%emt 0:00:44]} 30. Nd3 {[%emt 0:00:34]} Qxa5 {[%emt 0:00:17]} 0-1